[Event "Titled Tuesday Blitz March 07 Late 2023"]
[White "Skaric, Djuro"]
[Black "Bongo Akanga Ndjila, Barthelemy"]
[WhiteFideId "934569"]
[BlackFideId "10609431"]
[WhiteElo "2282"]
[BlackElo "1768"]
[Result "0-1"]
[Round "11"]
[TimeControl "180+2"]
[Date "2023.03.07"]
[WhiteClock "0:00:09"]
[BlackClock "0:01:04"]

1. g3 {[%clk 0:03:00]}  d5 {[%clk 0:02:35]} 2. Bg2 {[%clk 0:03:01]}  c5 {[%clk 0:02:35]} 3. d3 {[%clk 0:01:25]}  Nc6 {[%clk 0:02:32]} 4. Nf3 {[%clk 0:01:26]}  e5 {[%clk 0:02:31]} 5. O-O {[%clk 0:01:27]}  Be7 {[%clk 0:02:30]} 6. Nc3 {[%clk 0:01:27]}  Nf6 {[%clk 0:02:29]} 7. e4 {[%clk 0:01:27]}  d4 {[%clk 0:02:29]} 8. Ne2 {[%clk 0:01:26]}  O-O {[%clk 0:02:29]} 9. h3 {[%clk 0:01:27]}  Ne8 {[%clk 0:02:28]} 10. Ne1 {[%clk 0:01:28]}  f6 {[%clk 0:02:28]} 11. f4 {[%clk 0:01:29]}  g5 {[%clk 0:02:28]} 12. f5 {[%clk 0:01:30]}  h5 {[%clk 0:02:26]} 13. g4 {[%clk 0:01:31]}  h4 {[%clk 0:02:25]} 14. Nf3 {[%clk 0:01:25]}  Ng7 {[%clk 0:02:22]} 15. Bd2 {[%clk 0:01:25]}  b5 {[%clk 0:02:21]} 16. Qe1 {[%clk 0:01:25]}  c4 {[%clk 0:02:20]} 17. Nxh4 {[%clk 0:01:23]}  gxh4 {[%clk 0:02:18]} 18. Qxh4 {[%clk 0:01:23]}  Qe8 {[%clk 0:02:13]} 19. Qg3 {[%clk 0:01:22]}  a5 {[%clk 0:02:08]} 20. Bf3 {[%clk 0:01:22]}  cxd3 {[%clk 0:02:01]} 21. cxd3 {[%clk 0:01:22]}  Bb4 {[%clk 0:02:02]} 22. Bc1 {[%clk 0:01:20]}  Bc5 {[%clk 0:01:59]} 23. g5 {[%clk 0:01:20]}  fxg5 {[%clk 0:01:52]} 24. Bxg5 {[%clk 0:01:19]}  Nb4 {[%clk 0:01:48]} 25. Bg4 {[%clk 0:01:13]}  Ra6 {[%clk 0:01:40]} 26. f6 {[%clk 0:01:12]}  Nh5 {[%clk 0:01:36]} 27. Bxh5 {[%clk 0:01:00]}  Qxh5 {[%clk 0:01:36]} 28. Bh6+ {[%clk 0:00:51]}  Kf7 {[%clk 0:01:36]} 29. Qg7+ {[%clk 0:00:44]}  Ke6 {[%clk 0:01:35]} 30. Rac1 {[%clk 0:00:32]}  Nxd3 {[%clk 0:01:32]} 31. Rxc5 {[%clk 0:00:24]}  Rf7 {[%clk 0:01:33]} 32. Qg4+ {[%clk 0:00:20]}  Qxg4+ {[%clk 0:01:31]} 33. hxg4 {[%clk 0:00:20]}  Nxc5 {[%clk 0:01:31]} 34. g5 {[%clk 0:00:21]}  Nxe4 {[%clk 0:01:28]} 35. Rc1 {[%clk 0:00:16]}  Bb7 {[%clk 0:01:26]} 36. g6 {[%clk 0:00:09]}  Rxf6 {[%clk 0:01:25]} 37. g7 {[%clk 0:00:10]}  Rg6+ {[%clk 0:01:13]} 38. Kf1 {[%clk 0:00:10]}  Bd5 {[%clk 0:01:07]} 39. Ng1 {[%clk 0:00:10]}  Kf5 {[%clk 0:01:06]} 40. Nh3 {[%clk 0:00:09]}  Rxh6 {[%clk 0:01:06]} 41. g8=Q {[%clk 0:00:09]}  Bxg8 {[%clk 0:01:06]} 42. Rc8 {[%clk 0:00:09]}  Bc4+ {[%clk 0:01:04]} 0-1


[Site "https://www.chess.com"]

[Event "Titled Tuesday Blitz March 07 Late 2023"]
[White "Desideri, Ricardo Maruchi"]
[Black "Floresvillar Gonzalez, Luis Migu"]
[WhiteFideId "2110440"]
[BlackFideId "5100542"]
[WhiteElo "1945"]
[BlackElo "2040"]
[Result "0-1"]
[Round "11"]
[TimeControl "180+2"]
[Date "2023.03.07"]
[WhiteClock "0:00:08"]
[BlackClock "0:00:16"]

1. e4 {[%clk 0:02:58]}  d6 {[%clk 0:02:57]} 2. d4 {[%clk 0:02:56]}  Nc6 {[%clk 0:02:57]} 3. Nc3 {[%clk 0:02:55]}  e5 {[%clk 0:02:56]} 4. Nge2 {[%clk 0:02:47]}  exd4 {[%clk 0:02:51]} 5. Nxd4 {[%clk 0:02:46]}  Bd7 {[%clk 0:02:51]} 6. Be3 {[%clk 0:02:45]}  Nf6 {[%clk 0:02:50]} 7. f3 {[%clk 0:02:43]}  Be7 {[%clk 0:02:49]} 8. Qd2 {[%clk 0:02:42]}  Nxd4 {[%clk 0:02:46]} 9. Bxd4 {[%clk 0:02:40]}  a6 {[%clk 0:02:42]} 10. a4 {[%clk 0:02:38]}  O-O {[%clk 0:02:40]} 11. h4 {[%clk 0:02:36]}  Nh5 {[%clk 0:02:35]} 12. Bf2 {[%clk 0:02:24]}  c6 {[%clk 0:02:02]} 13. g4 {[%clk 0:02:21]}  Nf6 {[%clk 0:02:01]} 14. h5 {[%clk 0:02:18]}  b5 {[%clk 0:01:48]} 15. g5 {[%clk 0:02:16]}  Ne8 {[%clk 0:01:41]} 16. Be3 {[%clk 0:02:13]}  b4 {[%clk 0:01:34]} 17. Ne2 {[%clk 0:02:11]}  d5 {[%clk 0:01:34]} 18. Ng3 {[%clk 0:01:38]}  dxe4 {[%clk 0:01:31]} 19. Nxe4 {[%clk 0:01:37]}  Qc7 {[%clk 0:01:24]} 20. O-O-O {[%clk 0:01:32]}  Rd8 {[%clk 0:01:21]} 21. Qg2 {[%clk 0:01:27]}  c5 {[%clk 0:01:18]} 22. Bc4 {[%clk 0:01:23]}  Be6 {[%clk 0:01:12]} 23. Rxd8 {[%clk 0:01:07]}  Qxd8 {[%clk 0:01:09]} 24. Bxe6 {[%clk 0:01:05]}  fxe6 {[%clk 0:01:08]} 25. h6 {[%clk 0:00:47]}  Rf5 {[%clk 0:00:56]} 26. hxg7 {[%clk 0:00:41]}  Nxg7 {[%clk 0:00:35]} 27. Qh3 {[%clk 0:00:37]}  h5 {[%clk 0:00:31]} 28. gxh6 {[%clk 0:00:34]}  Rh5 {[%clk 0:00:22]} 29. Qg2 {[%clk 0:00:27]}  Rxh1+ {[%clk 0:00:20]} 30. Qxh1 {[%clk 0:00:26]}  Nf5 {[%clk 0:00:20]} 31. Qg2+ {[%clk 0:00:24]}  Kh8 {[%clk 0:00:18]} 32. Qg6 {[%clk 0:00:19]}  Qg8 {[%clk 0:00:16]} 33. Qxe6 {[%clk 0:00:08]}  Qxe6 {[%clk 0:00:16]} 0-1


[Site "https://www.chess.com"]

[Event "Titled Tuesday Blitz March 07 Late 2023"]
[White "Vargas, Mauricio"]
[Black "Kho, Darrell"]
[WhiteFideId "4404572"]
[BlackFideId "1019317"]
[WhiteElo "2025"]
[BlackElo "2161"]
[Result "0-1"]
[Round "11"]
[TimeControl "180+2"]
[Date "2023.03.07"]
[WhiteClock "0:02:25"]
[BlackClock "0:00:49"]

1. e4 {[%clk 0:03:00]}  e6 {[%clk 0:02:59]} 2. f4 {[%clk 0:03:00]}  d5 {[%clk 0:02:56]} 3. e5 {[%clk 0:03:01]}  c5 {[%clk 0:02:51]} 4. Nf3 {[%clk 0:03:02]}  Nc6 {[%clk 0:02:49]} 5. Bb5 {[%clk 0:03:01]}  Bd7 {[%clk 0:02:48]} 6. Bxc6 {[%clk 0:03:02]}  Bxc6 {[%clk 0:02:47]} 7. O-O {[%clk 0:03:03]}  Nh6 {[%clk 0:02:42]} 8. h3 {[%clk 0:03:02]}  Nf5 {[%clk 0:02:39]} 9. g4 {[%clk 0:03:01]}  Nh4 {[%clk 0:02:38]} 10. Qe1 {[%clk 0:03:01]}  Nxf3+ {[%clk 0:02:25]} 11. Rxf3 {[%clk 0:03:01]}  d4 {[%clk 0:02:23]} 12. Rf1 {[%clk 0:03:00]}  Qd5 {[%clk 0:02:22]} 13. Qg3 {[%clk 0:02:57]}  d3 {[%clk 0:02:02]} 14. Nc3 {[%clk 0:02:52]}  Qd4+ {[%clk 0:01:59]} 15. Kh2 {[%clk 0:02:47]}  O-O-O {[%clk 0:01:38]} 16. b3 {[%clk 0:02:42]}  h5 {[%clk 0:01:28]} 17. g5 {[%clk 0:02:42]}  dxc2 {[%clk 0:01:19]} 18. Qe3 {[%clk 0:02:38]}  Qxe3 {[%clk 0:01:06]} 19. dxe3 {[%clk 0:02:38]}  Rd3 {[%clk 0:01:06]} 20. Bb2 {[%clk 0:02:28]}  Rd2+ {[%clk 0:00:54]} 21. Kg3 {[%clk 0:02:25]}  h4+ {[%clk 0:00:49]} 22. Kg4 {[%clk 0:02:25]}  Rg2# {[%clk 0:00:49]} 0-1


[Site "https://www.chess.com"]

[Event "Titled Tuesday Blitz March 07 Late 2023"]
[White "Gamboa, Juan Pablo"]
[Black "Manu_ChessExcelsior"]
[WhiteFideId "105180"]
[WhiteElo "1871"]
[BlackElo "1987"]
[Result "1/2-1/2"]
[Round "11"]
[TimeControl "180+2"]
[Date "2023.03.07"]
[WhiteClock "0:01:18"]
[BlackClock "0:00:21"]

1. c4 {[%clk 0:03:00]}  e6 {[%clk 0:02:59]} 2. e4 {[%clk 0:02:59]}  d5 {[%clk 0:02:56]} 3. exd5 {[%clk 0:03:00]}  exd5 {[%clk 0:02:56]} 4. cxd5 {[%clk 0:03:00]}  Qxd5 {[%clk 0:02:56]} 5. Nc3 {[%clk 0:02:59]}  Qd8 {[%clk 0:02:48]} 6. Nf3 {[%clk 0:02:58]}  Nf6 {[%clk 0:02:45]} 7. Bc4 {[%clk 0:02:58]}  Be7 {[%clk 0:02:35]} 8. O-O {[%clk 0:02:58]}  O-O {[%clk 0:02:35]} 9. d4 {[%clk 0:02:58]}  Bg4 {[%clk 0:02:33]} 10. Be3 {[%clk 0:02:52]}  Nbd7 {[%clk 0:02:22]} 11. h3 {[%clk 0:02:48]}  Bh5 {[%clk 0:02:22]} 12. Rc1 {[%clk 0:02:47]}  Nb6 {[%clk 0:02:21]} 13. Be2 {[%clk 0:02:47]}  c6 {[%clk 0:02:21]} 14. Ne5 {[%clk 0:02:46]}  Bxe2 {[%clk 0:02:15]} 15. Qxe2 {[%clk 0:02:47]}  Re8 {[%clk 0:02:14]} 16. Rfd1 {[%clk 0:02:46]}  Nbd5 {[%clk 0:02:13]} 17. Nxd5 {[%clk 0:02:36]}  Nxd5 {[%clk 0:02:14]} 18. Qf3 {[%clk 0:02:37]}  Bf6 {[%clk 0:02:10]} 19. Ng4 {[%clk 0:02:31]}  Qd6 {[%clk 0:01:46]} 20. Nxf6+ {[%clk 0:02:29]}  Qxf6 {[%clk 0:01:45]} 21. Qxf6 {[%clk 0:02:27]}  Nxf6 {[%clk 0:01:45]} 22. Bf4 {[%clk 0:02:26]}  Nd5 {[%clk 0:01:44]} 23. Bd2 {[%clk 0:02:11]}  Re2 {[%clk 0:01:36]} 24. Kf1 {[%clk 0:02:11]}  Rae8 {[%clk 0:01:36]} 25. Re1 {[%clk 0:02:12]}  Rxe1+ {[%clk 0:01:31]} 26. Rxe1 {[%clk 0:02:09]}  Kf8 {[%clk 0:01:28]} 27. Rxe8+ {[%clk 0:02:07]}  Kxe8 {[%clk 0:01:29]} 28. Ke2 {[%clk 0:02:08]}  Kd7 {[%clk 0:01:29]} 29. Kd3 {[%clk 0:02:09]}  Ke6 {[%clk 0:01:22]} 30. g4 {[%clk 0:02:09]}  f5 {[%clk 0:01:11]} 31. f3 {[%clk 0:02:09]}  b5 {[%clk 0:00:55]} 32. a3 {[%clk 0:01:55]}  g6 {[%clk 0:00:40]} 33. h4 {[%clk 0:01:49]}  Nb6 {[%clk 0:00:40]} 34. b3 {[%clk 0:01:48]}  Kd5 {[%clk 0:00:40]} 35. h5 {[%clk 0:01:44]}  Nc8 {[%clk 0:00:34]} 36. Bb4 {[%clk 0:01:35]}  Nb6 {[%clk 0:00:27]} 37. Bc5 {[%clk 0:01:28]}  Nc8 {[%clk 0:00:26]} 38. Ke3 {[%clk 0:01:24]}  a5 {[%clk 0:00:25]} 39. Kf4 {[%clk 0:01:22]}  fxg4 {[%clk 0:00:21]} 40. fxg4 {[%clk 0:01:22]}  a4 {[%clk 0:00:19]} 41. bxa4 {[%clk 0:01:21]}  bxa4 {[%clk 0:00:18]} 42. hxg6 {[%clk 0:01:22]}  hxg6 {[%clk 0:00:18]} 43. Kg5 {[%clk 0:01:22]}  Nd6 {[%clk 0:00:16]} 44. Bxd6 {[%clk 0:01:21]}  Kxd6 {[%clk 0:00:17]} 45. Kxg6 {[%clk 0:01:21]}  Kd5 {[%clk 0:00:17]} 46. Kf7 {[%clk 0:01:17]}  Kxd4 {[%clk 0:00:17]} 47. g5 {[%clk 0:01:17]}  c5 {[%clk 0:00:17]} 48. g6 {[%clk 0:01:18]}  c4 {[%clk 0:00:18]} 49. g7 {[%clk 0:01:19]}  c3 {[%clk 0:00:19]} 50. g8=Q {[%clk 0:01:19]}  c2 {[%clk 0:00:19]} 51. Qg1+ {[%clk 0:01:17]}  Kc3 {[%clk 0:00:19]} 52. Qc1 {[%clk 0:01:18]}  Kb3 {[%clk 0:00:19]} 53. Ke6 {[%clk 0:01:18]}  Ka2 {[%clk 0:00:19]} 54. Kd5 {[%clk 0:01:17]}  Kb3 {[%clk 0:00:19]} 55. Kd4 {[%clk 0:01:18]}  Ka2 {[%clk 0:00:20]} 56. Qxc2+ {[%clk 0:01:18]}  Kxa3 {[%clk 0:00:21]} 57. Qb1 {[%clk 0:01:18]} 1/2-1/2


[Site "https://www.chess.com"]